[Event "Sunway Sitges Chess Festival"]
[Date "2024.12.21"]
[White "Lever, Erwan"]
[Black "Coles, Robin"]
[WhiteElo "2172"]
[BlackElo "2291"]
[Round "9.31"]
[Result "0-1"]
[TimeControl "40/5400+30:1800+30"]

1. d4 {[%clk 1:30:52]} 1... d5 {[%clk 1:30:57]} 2. c4 {[%clk 1:31:14]} 2... e6
{[%clk 1:31:24]} 3. Nf3 {[%clk 1:31:31]} 3... Nf6 {[%clk 1:31:49]} 4. g3 {[%clk
1:31:53]} 4... Be7 {[%clk 1:32:16]} 5. Bg2 {[%clk 1:32:07]} 5... O-O {[%clk
1:32:41]} 6. O-O {[%clk 1:29:47]} 6... dxc4 {[%clk 1:33:08]} 7. Qc2 {[%clk
1:29:39]} 7... b5 {[%clk 1:33:34]} 8. a4 {[%clk 1:29:34]} 8... b4 {[%clk
1:33:17]} 9. Ne5 {[%clk 1:29:13]} 9... Qxd4 {[%clk 1:31:02]} 10. Bxa8 {[%clk
1:29:25]} 10... Qxe5 {[%clk 1:31:28]} 11. Bf4 {[%clk 1:29:44]} 11... Qh5 {[%clk
1:30:09]} 12. Bf3 {[%clk 1:28:10]} 12... Ng4 {[%clk 1:27:36]} 13. Bxg4 {[%clk
1:28:29]} 13... Qxg4 {[%clk 1:28:03]} 14. Qxc4 {[%clk 1:28:48]} 14... e5 {[%clk
1:19:29]} 15. Qxc7 {[%clk 1:27:46]} 15... exf4 {[%clk 1:18:04]} 16. Qxe7 {[%clk
1:27:39]} 16... fxg3 {[%clk 1:16:34]} 17. Nd2 {[%clk 1:27:42]} 17... gxh2+
{[%clk 1:16:22]} 18. Kh1 {[%clk 1:28:05]} 18... Nc6 {[%clk 1:11:41]} 19. Qe4
{[%clk 1:23:28]} 19... Qd7 {[%clk 1:11:22]} 20. Rad1 {[%clk 1:00:21]} 20... Re8
{[%clk 0:55:26]} 21. Qg2 {[%clk 1:00:20]} 21... Qe6 {[%clk 0:50:25]} 22. f3
{[%clk 0:48:36]} 22... Nd4 {[%clk 0:37:03]} 23. Ne4 {[%clk 0:42:29]} 23... Nf5
{[%clk 0:37:20]} 24. Rd3 {[%clk 0:41:47]} 24... Ba6 {[%clk 0:34:02]} 25. Ng5
{[%clk 0:32:47]} 25... Qg6 {[%clk 0:27:23]} 26. Rb3 {[%clk 0:30:22]} 26... Ne3
{[%clk 0:23:21]} 27. Rxe3 {[%clk 0:30:41]} 27... Rxe3 {[%clk 0:23:47]} 28. Rd1
{[%clk 0:31:01]} 28... Re8 {[%clk 0:22:35]} 29. e4 {[%clk 0:31:19]} 29... h6
{[%clk 0:21:14]} 30. Nh3 {[%clk 0:31:11]} 30... Qxg2+ {[%clk 0:19:58]} 31. Kxg2
{[%clk 0:31:39]} 31... Rc8 {[%clk 0:19:47]} 32. Kxh2 {[%clk 0:31:12]} 32... Rc2+
{[%clk 0:19:42]} 33. Kg3 {[%clk 0:31:36]} 33... Rxb2 {[%clk 0:17:21]} 34. Rd7
{[%clk 0:31:30]} 34... b3 {[%clk 0:07:50]} 35. Rxa7 {[%clk 0:31:54]} 35... Bc4
{[%clk 0:08:18]} 36. a5 {[%clk 0:31:10]} 36... Rd2 {[%clk 0:08:21]} 37. a6
{[%clk 0:31:24]} 37... b2 {[%clk 0:07:20]} 38. Ra8+ {[%clk 0:31:35]} 38... Kh7
{[%clk 0:07:49]} 39. a7 {[%clk 0:30:55]} 39... b1=Q {[%clk 0:08:06]} 40. Rh8+
{[%clk 1:01:09]} 40... Kxh8 {[%clk 0:38:26]} 41. a8=Q+ {[%clk 1:01:32]} 41...
Kh7 {[%clk 0:38:53]} 42. Qc8 {[%clk 1:01:25]} 42... Qe1+ {[%clk 0:39:10]} 0-1

[Variant "Standard"]
[Site "Europe Echecs"]

[Event "Sunway Sitges Chess Festival"]
[Date "2024.12.21"]
[White "Torres Rosas, Luis Carlos"]
[Black "Harish, Neeraj"]
[WhiteElo "2277"]
[BlackElo "2153"]
[Round "9.32"]
[Result "1/2-1/2"]
[TimeControl "40/5400+30:1800+30"]

1. d4 {[%clk 1:30:55]} 1... Nf6 {[%clk 1:30:41]} 2. c4 {[%clk 1:31:13]} 2... g6
{[%clk 1:31:04]} 3. Nc3 {[%clk 1:31:37]} 3... d5 {[%clk 1:31:28]} 4. cxd5 {[%clk
1:32:01]} 4... Nxd5 {[%clk 1:31:52]} 5. e4 {[%clk 1:32:27]} 5... Nxc3 {[%clk
1:32:16]} 6. bxc3 {[%clk 1:32:53]} 6... Bg7 {[%clk 1:32:40]} 7. Nf3 {[%clk
1:33:07]} 7... c5 {[%clk 1:33:02]} 8. Be3 {[%clk 1:33:33]} 8... Qa5 {[%clk
1:33:01]} 9. Nd2 {[%clk 1:32:15]} 9... O-O {[%clk 1:26:47]} 10. Be2 {[%clk
1:31:23]} 10... Bd7 {[%clk 1:15:43]} 11. O-O {[%clk 1:27:19]} 11... Qa4 {[%clk
1:11:33]} 12. Rb1 {[%clk 1:08:26]} 12... Qxd1 {[%clk 1:03:20]} 13. Rfxd1 {[%clk
1:08:17]} 13... Bc6 {[%clk 0:59:52]} 14. f3 {[%clk 0:48:14]} 14... e6 {[%clk
0:58:52]} 15. Nc4 {[%clk 0:39:36]} 15... cxd4 {[%clk 0:51:30]} 16. cxd4 {[%clk
0:39:44]} 16... Rd8 {[%clk 0:51:35]} 17. Rd2 {[%clk 0:32:18]} 17... b6 {[%clk
0:43:26]} 18. Kf2 {[%clk 0:26:52]} 18... Bb7 {[%clk 0:42:47]} 19. Na5 {[%clk
0:27:15]} 19... Ba6 {[%clk 0:40:12]} 20. Bxa6 {[%clk 0:27:00]} 20... Nxa6 {[%clk
0:40:35]} 21. Nc6 {[%clk 0:26:57]} 21... Rd7 {[%clk 0:39:14]} 22. Rc1 {[%clk
0:23:47]} 22... Re8 {[%clk 0:33:16]} 23. Rd3 {[%clk 0:17:39]} 23... Nb8 {[%clk
0:29:13]} 24. a4 {[%clk 0:16:00]} 24... Nxc6 {[%clk 0:27:19]} 25. Rxc6 {[%clk
0:16:24]} 25... Red8 {[%clk 0:26:23]} 26. Rc4 {[%clk 0:15:22]} 26... h6 {[%clk
0:19:00]} 27. Ke2 {[%clk 0:15:37]} 27... Kh7 {[%clk 0:16:04]} 28. Kd2 {[%clk
0:14:06]} 28... g5 {[%clk 0:14:08]} 29. Kc3 {[%clk 0:13:22]} 29... Bf6 {[%clk
0:08:26]} 30. Rd2 {[%clk 0:11:33]} 30... Kg7 {[%clk 0:07:45]} 31. Rb2 {[%clk
0:11:44]} 31... Kg6 {[%clk 0:06:57]} 32. Rb5 {[%clk 0:12:05]} 32... Bg7 {[%clk
0:04:27]} 33. Rbb4 {[%clk 0:06:49]} 33... Bf8 {[%clk 0:03:57]} 34. Rb3 {[%clk
0:07:13]} 34... Bg7 {[%clk 0:04:05]} 35. Rb5 {[%clk 0:06:10]} 35... Bh8 {[%clk
0:02:52]} 36. Rbb4 {[%clk 0:05:18]} 36... Bg7 {[%clk 0:01:23]} 37. Rc6 {[%clk
0:05:30]} 37... Kf6 {[%clk 0:00:48]} 38. Rbc4 {[%clk 0:05:00]} 38... Ke7 {[%clk
0:01:03]} 39. Bf2 {[%clk 0:04:08]} 39... Bf6 {[%clk 0:00:57]} 40. Be3 {[%clk
0:31:53]} 40... Bg7 {[%clk 0:31:04]} 41. Rc7 {[%clk 0:23:40]} 41... Rxc7 {[%clk
0:28:06]} 42. Rxc7+ {[%clk 0:24:04]} 42... Rd7 {[%clk 0:28:28]} 43. Rxd7+ {[%clk
0:23:05]} 43... Kxd7 {[%clk 0:28:51]} 44. Kc4 {[%clk 0:23:27]} 44... Kc7 {[%clk
0:25:26]} 45. g4 {[%clk 0:23:26]} 45... Bf8 {[%clk 0:24:40]} 46. f4 {[%clk
0:15:16]} 46... Be7 {[%clk 0:19:27]} 47. f5 {[%clk 0:13:50]} 47... a6 {[%clk
0:18:35]} 48. Bf2 {[%clk 0:13:24]} 48... Ba3 {[%clk 0:13:00]} 49. Bg3+ {[%clk
0:05:08]} 49... Kc6 {[%clk 0:11:02]} 50. fxe6 {[%clk 0:05:28]} 50... fxe6 {[%clk
0:11:20]} 51. d5+ {[%clk 0:05:50]} 51... exd5+ {[%clk 0:11:31]} 52. exd5+ {[%clk
0:06:16]} 52... Kd7 {[%clk 0:11:51]} 53. Bf2 {[%clk 0:06:42]} 53... Kc7 {[%clk
0:11:59]} 54. Bd4 {[%clk 0:06:55]} 54... Bd6 {[%clk 0:10:12]} 55. h3 {[%clk
0:07:19]} 55... Bf8 {[%clk 0:09:48]} 56. Be5+ {[%clk 0:06:55]} 56... Kd7 {[%clk
0:08:55]} 57. Bd4 {[%clk 0:05:59]} 57... Kc7 {[%clk 0:09:19]} 58. Bf2 {[%clk
0:06:05]} 58... Bg7 {[%clk 0:08:04]} 59. Bg3+ {[%clk 0:05:24]} 59... Kd7 {[%clk
0:08:26]} 60. Bf2 {[%clk 0:05:48]} 60... Kc7 {[%clk 0:08:48]} 61. Be1 {[%clk
0:05:52]} 61... Bf8 {[%clk 0:04:09]} 62. Bc3 {[%clk 0:06:01]} 62... Kd7 {[%clk
0:04:29]} 63. Be5 {[%clk 0:04:53]} 63... Kc8 {[%clk 0:04:19]} 64. Bb2 {[%clk
0:02:20]} 64... Kd7 {[%clk 0:04:34]} 65. Bc3 {[%clk 0:02:35]} 65... Kc7 {[%clk
0:03:27]} 66. Bd4 {[%clk 0:02:58]} 66... Kb7 {[%clk 0:03:53]} 67. Be5 {[%clk
0:01:51]} 67... Kc8 {[%clk 0:04:13]} 68. Bd4 {[%clk 0:01:26]} 68... Kc7 {[%clk
0:02:09]} 1/2-1/2

[Variant "Standard"]
[Site "Europe Echecs"]

[Event "Sunway Sitges Chess Festival"]
[Date "2024.12.21"]
[White "Brzezina, Piotr"]
[Black "Pniaczek, Marek"]
[WhiteElo "2274"]
[BlackElo "2132"]
[Round "9.33"]
[Result "1-0"]
[TimeControl "40/5400+30:1800+30"]

1. d4 {[%clk 1:29:08]} 1... Nf6 {[%clk 1:30:55]} 2. c4 {[%clk 1:29:34]} 2... e6
{[%clk 1:31:22]} 3. Nf3 {[%clk 1:29:55]} 3... d5 {[%clk 1:31:31]} 4. Nc3 {[%clk
1:30:20]} 4... Nbd7 {[%clk 1:30:49]} 5. Bg5 {[%clk 1:24:01]} 5... Bb4 {[%clk
1:29:32]} 6. e3 {[%clk 1:12:43]} 6... c5 {[%clk 1:27:50]} 7. cxd5 {[%clk
0:59:49]} 7... exd5 {[%clk 1:27:56]} 8. Bd3 {[%clk 0:51:18]} 8... Qa5 {[%clk
1:25:27]} 9. Qc2 {[%clk 0:51:08]} 9... c4 {[%clk 1:21:28]} 10. Bf5 {[%clk
0:50:17]} 10... O-O {[%clk 1:21:04]} 11. O-O {[%clk 0:50:11]} 11... Re8 {[%clk
1:19:37]} 12. Bh4 {[%clk 0:39:55]} 12... g6 {[%clk 1:10:12]} 13. Bxd7 {[%clk
0:35:14]} 13... Nxd7 {[%clk 1:10:31]} 14. a3 {[%clk 0:35:37]} 14... Bxc3 {[%clk
0:59:22]} 15. bxc3 {[%clk 0:36:05]} 15... Nb6 {[%clk 0:55:44]} 16. Ne5 {[%clk
0:30:51]} 16... Kg7 {[%clk 0:48:48]} 17. h3 {[%clk 0:14:08]} 17... f6 {[%clk
0:33:20]} 18. Ng4 {[%clk 0:13:47]} 18... Bxg4 {[%clk 0:33:01]} 19. hxg4 {[%clk
0:14:16]} 19... Re4 {[%clk 0:33:06]} 20. Bg3 {[%clk 0:14:14]} 20... Rxg4 {[%clk
0:30:27]} 21. Bf4 {[%clk 0:14:04]} 21... Rh4 {[%clk 0:29:12]} 22. f3 {[%clk
0:14:02]} 22... Qa4 {[%clk 0:20:32]} 23. Qf2 {[%clk 0:11:15]} 23... g5 {[%clk
0:20:53]} 24. Bg3 {[%clk 0:06:34]} 24... Rh6 {[%clk 0:21:16]} 25. e4 {[%clk
0:04:50]} 25... Rg6 {[%clk 0:09:49]} 26. Rfe1 {[%clk 0:00:36]} 26... Re8 {[%clk
0:07:49]} 27. Re3 {[%clk 0:00:00]} 27... Kf7 {[%clk 0:07:28]} 28. Qd2 {[%clk
0:00:32]} 28... Qd7 {[%clk 0:04:58]} 29. Rae1 {[%clk 0:00:37]} 29... g4 {[%clk
0:03:51]} 30. e5 {[%clk 0:00:54]} 30... f5 {[%clk 0:04:04]} 31. fxg4 {[%clk
0:00:43]} 31... fxg4 {[%clk 0:03:59]} 32. Rf1+ {[%clk 0:00:34]} 32... Kg8 {[%clk
0:04:28]} 33. Re2 {[%clk 0:00:42]} 33... Qg7 {[%clk 0:01:09]} 34. Ref2 {[%clk
0:01:02]} 34... Nd7 {[%clk 0:01:36]} 35. Bh4 {[%clk 0:00:32]} 35... Nf8 {[%clk
0:01:53]} 36. Bf6 {[%clk 0:00:48]} 36... Qd7 {[%clk 0:01:11]} 37. g3 {[%clk
0:01:02]} 37... Ne6 {[%clk 0:01:16]} 38. Kg2 {[%clk 0:00:51]} 38... h5 {[%clk
0:00:52]} 39. Rh1 {[%clk 0:01:01]} 39... Qh7 {[%clk 0:01:21]} 40. Re2 {[%clk
0:30:31]} 40... Rh6 {[%clk 0:00:-41]} 1-0

[Variant "Standard"]
[Site "Europe Echecs"]

[Event "Sunway Sitges Chess Festival"]
[Date "2024.12.21"]
[White "Hauchamps, Maxime"]
[Black "Lam, Chun Yung Samuel"]
[WhiteElo "2269"]
[BlackElo "2065"]
[Round "9.34"]
[Result "1-0"]
[TimeControl "40/5400+30:1800+30"]

1. d4 {[%clk 1:30:57]} 1... Nf6 {[%clk 1:30:51]} 2. c4 {[%clk 1:31:21]} 2... c5
{[%clk 1:31:10]} 3. d5 {[%clk 1:31:45]} 3... e6 {[%clk 1:31:37]} 4. Nc3 {[%clk
1:32:02]} 4... exd5 {[%clk 1:32:02]} 5. cxd5 {[%clk 1:32:26]} 5... d6 {[%clk
1:32:28]} 6. Nf3 {[%clk 1:32:51]} 6... g6 {[%clk 1:32:51]} 7. Nd2 {[%clk
1:33:15]} 7... Bg7 {[%clk 1:32:59]} 8. e4 {[%clk 1:33:36]} 8... O-O {[%clk
1:33:06]} 9. Be2 {[%clk 1:34:01]} 9... Na6 {[%clk 1:33:00]} 10. O-O {[%clk
1:34:11]} 10... Nc7 {[%clk 1:33:21]} 11. a4 {[%clk 1:33:52]} 11... a6 {[%clk
1:33:28]} 12. Nc4 {[%clk 1:34:11]} 12... b5 {[%clk 1:33:35]} 13. axb5 {[%clk
1:34:35]} 13... axb5 {[%clk 1:34:00]} 14. Rxa8 {[%clk 1:34:59]} 14... Nxa8
{[%clk 1:34:26]} 15. Nxb5 {[%clk 1:35:25]} 15... Nxe4 {[%clk 1:34:38]} 16. Bf4
{[%clk 1:35:49]} 16... Qf6 {[%clk 1:33:43]} 17. g3 {[%clk 1:36:13]} 17... Bh3
{[%clk 1:32:03]} 18. Re1 {[%clk 1:36:37]} 18... Nxf2 {[%clk 1:31:02]} 19. Kxf2
{[%clk 1:36:59]} 19... g5 {[%clk 1:31:23]} 20. Bg4 {[%clk 1:37:07]} 20... Bxg4
{[%clk 1:31:07]} 21. Qxg4 {[%clk 1:37:34]} 21... gxf4 {[%clk 1:31:31]} 22. Qxf4
{[%clk 1:37:58]} 22... Qxf4+ {[%clk 1:31:21]} 23. gxf4 {[%clk 1:38:26]} 23...
Rb8 {[%clk 1:31:31]} 24. Nbxd6 {[%clk 1:38:19]} 24... Bd4+ {[%clk 1:31:49]} 25.
Kf3 {[%clk 1:38:43]} 25... Nc7 {[%clk 1:32:16]} 26. Ke4 {[%clk 1:38:25]} 26...
Ne8 {[%clk 1:32:44]} 27. Kf5 {[%clk 1:37:25]} 27... Nc7 {[%clk 1:22:25]} 28. Re7
{[%clk 1:27:29]} 28... Nxd5 {[%clk 1:21:52]} 29. Rxf7 {[%clk 1:27:49]} 29... Rf8
{[%clk 1:19:36]} 30. Rxf8+ {[%clk 1:25:38]} 30... Kxf8 {[%clk 1:20:05]} 31. Ne4
{[%clk 1:17:44]} 31... Ke7 {[%clk 0:53:50]} 32. Ng5 {[%clk 1:11:43]} 32... Nf6
{[%clk 0:49:22]} 33. b3 {[%clk 1:00:26]} 33... h6 {[%clk 0:35:08]} 34. Nf3
{[%clk 0:56:27]} 34... Bf2 {[%clk 0:30:38]} 35. Kg6 {[%clk 0:53:11]} 35... Nd5
{[%clk 0:29:24]} 36. f5 {[%clk 0:53:00]} 36... Bd4 {[%clk 0:25:29]} 37. Nxd4
{[%clk 0:47:57]} 37... cxd4 {[%clk 0:25:45]} 38. Kg7 {[%clk 0:48:21]} 38... d3
{[%clk 0:20:21]} 39. b4 {[%clk 0:43:16]} 39... h5 {[%clk 0:07:26]} 40. h4 {[%clk
1:12:57]} 40... Nf6 {[%clk 0:37:05]} 41. Nd2 {[%clk 1:02:11]} 41... Ne8+ {[%clk
0:20:56]} 42. Kg6 {[%clk 1:02:32]} 42... Nd6 {[%clk 0:21:17]} 43. f6+ {[%clk
1:00:51]} 43... Kf8 {[%clk 0:21:39]} 44. Kxh5 {[%clk 1:00:13]} 44... Kf7 {[%clk
0:22:06]} 45. Kg5 {[%clk 1:00:33]} 45... Ne8 {[%clk 0:21:32]} 46. b5 {[%clk
0:50:49]} 46... Nxf6 {[%clk 0:21:53]} 47. b6 {[%clk 0:51:10]} 47... Nd7 {[%clk
0:21:54]} 48. b7 {[%clk 0:51:36]} 48... Kg7 {[%clk 0:20:55]} 49. h5 {[%clk
0:51:37]} 49... Kh7 {[%clk 0:20:48]} 50. h6 {[%clk 0:50:30]} 50... Nb8 {[%clk
0:21:17]} 51. Kh5 {[%clk 0:50:37]} 51... Nd7 {[%clk 0:17:33]} 52. Ne4 {[%clk
0:50:41]} 52... Kh8 {[%clk 0:17:07]} 53. Kg5 {[%clk 0:50:57]} 53... Nb8 {[%clk
0:16:15]} 54. Kg6 {[%clk 0:51:05]} 54... d2 {[%clk 0:13:39]} 55. Nxd2 {[%clk
0:51:18]} 55... Nc6 {[%clk 0:14:07]} 56. h7 {[%clk 0:50:26]} 56... Nd8 {[%clk
0:14:35]} 57. b8=B {[%clk 0:45:25]} 57... Nc6 {[%clk 0:12:47]} 58. Ne4 {[%clk
0:45:24]} 58... Ne7+ {[%clk 0:12:44]} 59. Kf7 {[%clk 0:44:44]} 59... Kxh7 {[%clk
0:11:20]} 60. Kxe7 {[%clk 0:45:12]} 60... Kg6 {[%clk 0:11:43]} 61. Ke6 {[%clk
0:45:36]} 61... Kh5 {[%clk 0:12:01]} 62. Kf5 {[%clk 0:45:58]} 62... Kh4 {[%clk
0:12:28]} 63. Nf2 {[%clk 0:46:21]} 63... Kh5 {[%clk 0:12:52]} 64. Bg3 {[%clk
0:46:45]} 64... Kh6 {[%clk 0:13:19]} 65. Ng4+ {[%clk 0:44:43]} 65... Kg7 {[%clk
0:13:23]} 66. Bh4 {[%clk 0:43:47]} 66... Kf7 {[%clk 0:13:48]} 67. Bf6 {[%clk
0:42:47]} 67... Ke8 {[%clk 0:14:12]} 68. Ke6 {[%clk 0:43:13]} 68... Kf8 {[%clk
0:14:40]} 69. Nh6 {[%clk 0:42:45]} 69... Ke8 {[%clk 0:15:07]} 70. Nf5 {[%clk
0:43:07]} 70... Kf8 {[%clk 0:15:35]} 71. Be7+ {[%clk 0:43:31]} 71... Kg8 {[%clk
0:16:02]} 72. Kf6 {[%clk 0:43:54]} 72... Kh7 {[%clk 0:16:24]} 73. Kf7 {[%clk
0:44:19]} 73... Kh8 {[%clk 0:16:51]} 74. Bf8 {[%clk 0:44:30]} 74... Kh7 {[%clk
0:17:18]} 75. Ng3 {[%clk 0:44:39]} 1-0

[Variant "Standard"]
[Site "Europe Echecs"]

[Event "Sunway Sitges Chess Festival"]
[Date "2024.12.21"]
[White "Vivaan Rana"]
[Black "Van Zyl-Rudd, Jack"]
[WhiteElo "1899"]
[BlackElo "2268"]
[Round "9.35"]
[Result "1/2-1/2"]
[TimeControl "40/5400+30:1800+30"]

1. Nc3 c5 {[%clk 1:22:18]} 2. Nf3 {[%clk 1:31:21]} 2... Nf6 {[%clk 1:22:22]} 3.
d4 {[%clk 1:31:44]} 3... d5 {[%clk 1:13:12]} 4. Bf4 {[%clk 1:32:07]} 4... cxd4
{[%clk 1:10:02]} 5. Nxd4 {[%clk 1:31:36]} 5... a6 {[%clk 0:51:45]} 6. e3 {[%clk
1:26:20]} 6... g6 {[%clk 0:51:44]} 7. Be2 {[%clk 1:26:20]} 7... Bg7 {[%clk
0:51:44]} 8. O-O {[%clk 1:26:20]} 8... O-O {[%clk 0:51:44]} 9. Qd2 {[%clk
1:26:20]} 9... Nc6 {[%clk 0:51:44]} 10. Nxc6 {[%clk 1:26:20]} 10... bxc6 {[%clk
0:51:44]} 11. h3 {[%clk 1:26:20]} 11... Re8 {[%clk 0:51:44]} 12. Rad1 {[%clk
1:26:20]} 12... e5 {[%clk 0:51:44]} 13. Bh2 {[%clk 1:26:20]} 13... Bf5 {[%clk
0:51:44]} 14. b4 {[%clk 1:26:20]} 14... d4 {[%clk 0:51:44]} 15. Na4 {[%clk
1:26:20]} 15... a5 {[%clk 0:51:44]} 16. b5 {[%clk 1:26:20]} 16... d3 {[%clk
0:51:44]} 17. Bxd3 {[%clk 1:26:20]} 17... Bxd3 {[%clk 0:51:44]} 18. cxd3 {[%clk
1:26:20]} 18... cxb5 {[%clk 0:51:44]} 19. Nc3 {[%clk 1:26:20]} 19... b4 {[%clk
0:51:44]} 20. Ne2 {[%clk 1:26:20]} 20... Nd5 {[%clk 0:51:44]} 21. Rc1 {[%clk
1:26:20]} 21... Qb6 {[%clk 0:51:44]} 22. Rc4 {[%clk 1:26:20]} 22... b3 {[%clk
0:51:44]} 23. Rb1 {[%clk 1:26:20]} 23... bxa2 {[%clk 0:51:44]} 24. Qxa2 {[%clk
1:26:20]} 24... Nb4 {[%clk 0:51:44]} 25. Qa4 {[%clk 1:26:20]} 25... Qa6 {[%clk
0:51:44]} 26. Nc3 {[%clk 1:26:20]} 26... Red8 {[%clk 0:51:44]} 27. Nb5 {[%clk
1:26:20]} 27... Qb6 {[%clk 0:51:44]} 28. d4 {[%clk 1:26:20]} 28... Rac8 {[%clk
0:51:44]} 29. Rbc1 {[%clk 1:26:20]} 29... Rb8 {[%clk 0:51:44]} 30. Rb1 {[%clk
1:26:20]} 30... Rbc8 {[%clk 0:51:44]} 1/2-1/2

[Variant "Standard"]
[Site "Europe Echecs"]